bitfinex/quotes_SOLUSD_20241005
["timestamp","ask_amount","ask_price","bid_price","bid_amount"]
[1728098116785,20.0,142.21,142.18,23.776884]
[1728098116987,27.0319,142.21,142.18,23.776884]
[1728098117189,7.0324,142.2,142.18,23.776884]
[1728098117595,7.0324,142.2,142.18,53.776884]
[1728098118394,7.0324,142.2,142.18,30.0]
[1728098118707,7.0334,142.18,142.16,30.0]
[1728098121481,1.75834091,142.21,142.16,30.0]
[1728098121684,7.0338,142.17,142.15,30.0]
[1728098122088,7.0343,142.16,142.14,0.8501506]
[1728098124289,20.0,142.2,142.14,0.8501506]
[1728098124616,7.0328,142.19,142.15,23.776884]
[1728098126019,7.0333,142.18,142.15,53.776884]
[1728098129225,7.0333,142.18,142.15,23.776884]
[1728098131628,27.0348,142.15,142.14,0.8501506]
[1728098169685,28.79397287,142.15,142.14,0.8501506]
[1728098170920,27.0348,142.15,142.14,0.8501506]
[1728098179906,7.0348,142.15,142.14,24.6270346]
[1728098180226,17.5827,142.19,142.14,24.6270346]
[1728098180535,17.5827,142.19,142.15,23.776884]
[1728098181130,27.0344,142.16,142.15,23.776884]
[1728098181308,7.0344,142.16,142.15,23.776884]
[1728098182443,7.0348,142.15,142.14,24.6270346]
[1728098187249,7.0348,142.15,142.14,0.8501506]
[1728098187850,27.0348,142.15,142.14,0.8501506]
[1728098201049,27.0348,142.15,142.14,5.06e-05]
[1728098201221,16.4136,142.18,142.02,2.54855127]
[1728098201222,7.0388,142.07,142.02,30.95252544]
[1728098201425,7.0388,142.07,142.03,7.0407]
[1728098202443,7.0388,142.07,142.03,16.35442544]
[1728098202669,7.0383,142.08,142.03,16.35442544]
[1728098202835,7.0383,142.08,142.04,30.0]
[1728098203742,17.5925,142.11,142.04,30.0]
[1728098203743,1.75947974,142.1,142.04,30.0]
[1728098203930,7.0389,142.07,142.04,30.0]
[1728098204337,7.0389,142.07,142.04,23.776884]
[1728098204535,7.0393,142.06,142.02,21.6388]
[1728098204732,7.0394,142.06,142.03,30.0]
[1728098205053,7.0398,142.05,142.03,30.0]
[1728098205848,7.0398,142.05,142.02,21.6388]
[1728098206436,7.0398,142.05,142.03,23.776884]
[1728098206754,7.0402,142.04,142.03,23.776884]
[1728098206933,7.0402,142.04,142.02,15.2592]
[1728098207341,7.0393,142.06,142.02,15.2592]
[1728098207649,7.0399,142.05,142.02,15.2592]
[1728098208348,7.0399,142.05,142.03,23.776884]
[1728098209150,1.75970236,142.09,142.0,0.8501506]
[1728098209333,7.0402,142.04,142.0,10.16387604]
[1728098209542,20.0,142.1,142.02,9.31372544]
[1728098209742,7.0387,142.07,142.02,16.35452544]
[1728098210330,7.0382,142.09,142.02,9.31372544]
[1728098210525,7.0373,142.1,142.06,0.12549]
[1728098210857,7.0363,142.12,142.08,24.027864]
[1728098216250,17.5848,142.17,142.08,23.902374]
[1728098216552,7.0369,142.11,142.08,0.12549]
[1728098217673,7.0358,142.14,142.1,0.12549]
[1728098217955,20.0,142.16,142.1,0.12549]
[1728098217956,7.0358,142.13,142.1,0.12549]
[1728098218766,7.0363,142.12,142.1,0.25098]
[1728098218933,7.0363,142.12,142.1,0.12549]
[1728098221159,7.0357,142.14,142.1,0.25098]
[1728098221351,20.0,142.19,142.12,0.25098]
[1728098221659,20.0,142.15,142.12,0.25098]
[1728098221851,7.0348,142.15,142.12,0.25098]
[1728098222447,7.0353,142.14,142.11,0.12549]
[1728098223145,31.00141523,142.19,142.11,0.12549]
[1728098223342,7.0358,142.13,142.11,0.12549]
[1728098224639,7.0358,142.13,142.1,23.902374]
[1728098225678,1.75881387,142.17,142.1,23.902374]
[1728098225957,7.0372,142.1,142.09,16.5222]
[1728098226864,7.0377,142.09,142.05,49.98782544]
[1728098227068,7.0377,142.09,142.06,30.0]
[1728098227965,7.0377,142.09,142.07,24.027864]
[1728098228263,58.54696223,142.21,142.09,24.027864]
[1728098228467,1.75858467,142.2,142.11,24.027864]
[1728098228636,7.0353,142.14,142.11,24.027864]
[1728098229970,7.0371,142.11,142.1,23.776884]
[1728098230264,7.0363,142.12,142.1,53.776884]
[1728098230576,7.0363,142.12,142.1,55.18415091]
[1728098230862,7.0363,142.12,142.1,53.776884]
[1728098231169,7.0363,142.12,142.1,0.12549]
[1728098232865,7.0372,142.1,142.09,23.776884]
[1728098233071,7.0368,142.11,142.09,23.776884]
[1728098236670,7.0372,142.1,142.09,23.776884]
[1728098240061,17.5834,142.18,142.1,0.25098]
[1728098240257,7.0356,142.14,142.12,0.12549]
[1728098240491,7.0342,142.17,142.12,8.69407121]
[1728098240780,7.0349,142.15,142.13,23.776884]
[1728098241792,21.75851599,142.2,142.13,23.776884]
[1728098241998,7.0353,142.14,142.13,23.902374]
[1728098244389,7.0353,142.14,142.13,24.027864]
[1728098244982,7.0348,142.15,142.14,0.12549]
[1728098247291,7.0348,142.15,142.13,0.25098]
[1728098253876,17.5827,142.19,142.14,23.776884]
[1728098254071,7.0333,142.18,142.17,0.12549]
[1728098257083,7.0312,142.23,142.17,0.12549]
[1728098257390,7.0303,142.25,142.23,23.902374]
[1728098257592,17.5713,142.28,142.23,23.902374]
[1728098258092,7.0299,142.25,142.23,23.902374]
[1728098258298,16.1046,142.38,142.26,0.12549]
[1728098258482,16.1046,142.38,142.28,24.027864]
[1728098258483,1.75659483,142.37,142.28,24.027864]
[1728098258668,7.0264,142.32,142.28,24.027864]
[1728098259378,7.0269,142.31,142.28,24.027864]
[1728098259586,7.0274,142.3,142.28,23.776884]
[1728098260681,17.5652,142.33,142.25,23.902374]
[1728098260875,37.86172463,142.32,142.25,23.776884]
[1728098261709,7.0298,142.25,142.24,16.6298]
[1728098263187,7.0298,142.25,142.24,40.406684]
[1728098266005,7.0293,142.26,142.25,23.776884]
[1728098266173,7.0293,142.26,142.25,25.18170995]
[1728098267276,7.0293,142.26,142.25,23.776884]
[1728098268099,36.1046,142.32,142.27,23.776884]
[1728098268310,7.0279,142.29,142.27,23.776884]
[1728098269178,7.0283,142.28,142.27,23.776884]
[1728098274908,7.0283,142.28,142.26,23.776884]
[1728098275203,7.0283,142.28,142.24,16.6298]
[1728098275204,7.0283,142.28,142.27,25.18118048]
[1728098275405,7.0283,142.28,142.27,23.776884]
[1728098275583,17.5637,142.34,142.27,0.25098]
[1728098275899,7.0269,142.31,142.28,23.776884]
[1728098276078,7.0269,142.31,142.29,1.4034996]
[1728098276282,7.0269,142.31,142.3,23.776884]
[1728098278202,16.3902,142.35,142.3,23.776884]
[1728098278398,24.1867,142.37,142.31,1.40302978]
[1728098278700,7.0263,142.33,142.31,1.40302978]
[1728098279513,7.0264,142.32,142.31,25.17991378]
[1728098279891,7.0264,142.32,142.31,23.776884]
[1728098280286,7.0264,142.32,142.3,23.902374]
[1728098280481,7.0264,142.32,142.31,25.18004687]
[1728098280912,7.0264,142.32,142.31,23.776884]
[1728098281288,7.0259,142.33,142.31,23.776884]
[1728098281488,17.5603,142.37,142.32,25.17970331]
[1728098281688,15.5509,142.38,142.32,25.17970331]
[1728098281689,7.0249,142.35,142.32,25.17970331]
[1728098282390,7.0249,142.35,142.31,23.776884]
[1728098282697,7.0249,142.35,142.32,0.25098]
[1728098282890,35.1047,142.44,142.32,26.1886]
[1728098283093,21.7286,142.47,142.38,24.027864]
[1728098283094,7.0215,142.42,142.38,24.027864]
[1728098283308,35.9384506,142.5,142.4,24.027864]
[1728098283507,7.0211,142.43,142.4,23.902374]
[1728098283811,17.5454,142.49,142.41,1.40012447]
[1728098284029,7.0205,142.44,142.4,23.902374]
[1728098284317,7.0195,142.46,142.42,23.902374]
[1728098284532,7.0195,142.46,142.44,23.776884]
[1728098285614,0.8501506,142.5,142.42,30.12549]
[1728098285819,7.02,142.45,142.43,23.776884]
[1728098286403,7.02,142.45,142.44,53.776884]
[1728098286704,7.0195,142.46,142.44,30.0]
[1728098287308,7.019,142.47,142.44,30.0]
[1728098287628,7.019,142.47,142.45,23.776884]
[1728098288203,7.0195,142.46,142.44,30.0]
[1728098288826,7.0195,142.46,142.42,23.902374]
[1728098289035,7.0205,142.44,142.42,23.776884]
[1728098289403,7.02,142.45,142.42,23.776884]
[1728098290409,7.02,142.45,142.41,23.902374]
[1728098290631,7.02,142.45,142.41,53.902374]
[1728098291626,7.02,142.45,142.43,23.776884]
[1728098297736,0.8501506,142.5,142.39,0.12549]
[1728098297909,7.0213,142.43,142.39,30.0]
[1728098298106,7.0205,142.44,142.4,1.40025221]
[1728098298442,7.02,142.45,142.4,7.0223]
[1728098299212,7.02,142.45,142.41,24.027864]
[1728098299411,7.0194,142.47,142.41,41.581764]
[1728098299621,7.0194,142.47,142.43,23.776884]
[1728098299820,7.0194,142.47,142.44,1.39938886]
[1728098300027,7.0195,142.46,142.44,1.39938886]
[1728098300222,0.8501506,142.5,142.43,23.776884]
[1728098300223,20.0,142.47,142.45,23.776884]
[1728098300609,20.0,142.47,142.44,23.776884]
[1728098300808,27.019,142.47,142.44,23.776884]
[1728098301028,27.019,142.47,142.45,1.39901499]
[1728098301229,7.0186,142.48,142.46,23.776884]
[1728098302032,7.0186,142.48,142.47,1.3987641]
[1728098302236,7.8680506,142.5,142.47,1.3987641]
[1728098302924,20.0,142.49,142.47,1.3987641]
[1728098303130,7.018,142.49,142.47,1.3987641]
[1728098303936,0.8501506,142.5,142.46,23.776884]
[1728098304142,7.019,142.47,142.46,23.776884]
[1728098304834,7.019,142.47,142.44,0.12549]
[1728098305018,7.019,142.47,142.44,25.30122873]
[1728098305540,7.0185,142.48,142.45,0.12549]
[1728098306731,7.0195,142.46,142.44,23.902374]
[1728098306942,7.0189,142.48,142.44,0.12549]
[1728098308143,7.0189,142.48,142.44,0.25098]
[1728098308525,20.8501506,142.5,142.45,23.776884]
[1728098308823,7.019,142.47,142.45,23.776884]
[1728098310843,0.8501506,142.5,142.46,1.3988999]
[1728098311144,20.0,142.49,142.47,23.776884]
[1728098311721,0.8501506,142.5,142.47,23.776884]
[1728098311926,7.0181,142.49,142.47,23.776884]
[1728098312140,7.0181,142.49,142.46,23.902374]
[1728098314747,7.0181,142.49,142.46,0.12549]
[1728098315267,7.0181,142.49,142.47,23.776884]
[1728098316327,0.8501506,142.5,142.48,1.39831198]
[1728098316328,7.8677506,142.5,142.48,1.39831198]
[1728098316645,0.8501506,142.5,142.49,23.902374]
[1728098317248,0.8501506,142.5,142.48,23.776884]
[1728098318332,0.8501506,142.5,142.49,25.17461622]
[1728098319152,0.8501506,142.5,142.47,1.39778678]
[1728098319338,7.0181,142.49,142.45,10.68887289]
[1728098319534,7.0181,142.49,142.45,39.2904754]
[1728098320542,7.0181,142.49,142.46,23.902374]
[1728098322665,1.75452967,142.48,142.4,40.4199]
[1728098322955,7.0204,142.45,142.41,9.2904754]
[1728098323158,7.0204,142.45,142.41,16.3122754]
[1728098323363,7.0185,142.48,142.43,16.3110754]
[1728098323549,7.0185,142.48,142.43,7.0206]
[1728098323859,7.019,142.47,142.44,23.902374]
[1728098324434,0.8501506,142.5,142.46,23.902374]
[1728098324637,0.8501506,142.5,142.49,7.14349]
[1728098324840,0.8501506,142.5,142.49,32.44296074]
[1728098326437,0.8501506,142.5,142.49,46.95984227]
[1728098326641,667.5741,142.6,142.56,7.0144]
[1728098326842,667.5741,142.6,142.56,23.776884]
[1728098327267,645.0,142.6,142.57,0.25098]
[1728098327842,7.0133,142.59,142.55,23.776884]
[1728098328676,1.75336307,142.59,142.55,23.776884]
[1728098328851,7.0145,142.56,142.53,23.776884]
[1728098329455,7.0141,142.57,142.53,23.776884]
[1728098329751,645.0,142.6,142.53,23.776884]
[1728098329960,7.0146,142.56,142.53,23.776884]
[1728098331364,7.014,142.58,142.55,23.776884]
[1728098332144,7.014,142.58,142.54,23.902374]
[1728098339076,7.0146,142.56,142.52,16.5672]
[1728098340375,7.0146,142.56,142.53,23.902374]
[1728098341393,7.0143,142.57,142.55,23.776884]
[1728098341674,7.0143,142.57,142.53,23.902374]
[1728098342747,7.0143,142.57,142.53,30.918374]
[1728098346582,7.0136,142.58,142.54,0.12549]
[1728098347566,7.0136,142.58,142.54,9.40226142]
[1728098347788,21.75344786,142.59,142.53,23.902374]
[1728098347966,21.75344786,142.59,142.49,37.5445]
[1728098347967,16.3774,142.58,142.49,37.5445]
[1728098348276,7.0159,142.54,142.49,37.5445]
[1728098348582,7.015,142.55,142.5,16.29417142]
[1728098349481,7.0157,142.54,142.5,16.29417142]
[1728098349858,7.0157,142.54,142.51,23.902374]
[1728098352801,27.0145,142.57,142.53,23.776884]
[1728098353488,27.0145,142.57,142.54,1.39639499]
[1728098353778,7.0145,142.57,142.54,1.39639499]
[1728098353964,7.0147,142.56,142.54,1.39639499]
[1728098354881,7.0147,142.56,142.53,23.776884]
[1728098355574,7.0132,142.59,142.55,23.776884]
[1728098355792,652.0127,142.6,142.57,23.776884]
[1728098361487,652.0127,142.6,142.56,23.776884]
[1728098363886,645.0,142.6,142.57,0.12549]
[1728098364199,645.0,142.6,142.57,0.25098]
[1728098365772,645.0,142.6,142.58,23.776884]
[1728098368887,645.0,142.6,142.53,16.0973]
[1728098369093,7.0147,142.56,142.52,17.5406]
[1728098369469,7.0162,142.53,142.49,33.6417]
[1728098369670,1.75368352,142.55,142.46,9.27677142]
[1728098369671,7.0166,142.52,142.46,9.27677142]
[1728098369981,7.0166,142.52,142.47,7.0189]
[1728098370323,7.0166,142.52,142.48,30.0]
[1728098370483,7.0171,142.51,142.48,30.0]
[1728098370675,7.0171,142.51,142.46,33.84447142]
[1728098371275,7.0171,142.51,142.46,24.5677]
[1728098371980,7.0171,142.51,142.47,24.027864]
[1728098372593,7.0164,142.53,142.49,23.776884]
[1728098373698,7.0164,142.53,142.48,23.776884]
[1728098375581,7.0167,142.52,142.48,23.776884]
[1728098375783,20.0,142.54,142.47,23.902374]
[1728098375986,1.75442714,142.53,142.47,23.902374]
[1728098376509,7.0176,142.5,142.47,23.902374]
[1728098377183,7.0176,142.5,142.47,23.776884]
[1728098379100,7.0176,142.5,142.47,25.17520945]
[1728098379493,7.0176,142.5,142.47,23.776884]
[1728098381408,7.0176,142.5,142.47,25.17518457]
[1728098383409,20.0,142.54,142.47,25.17518457]
[1728098383590,20.0,142.54,142.47,32.19408457]
[1728098383792,7.0171,142.51,142.47,25.17518457]
[1728098383991,7.0171,142.51,142.47,23.776884]
[1728098385213,7.0171,142.51,142.47,25.17518985]
[1728098385913,7.0171,142.51,142.47,23.776884]
[1728098390109,20.0,142.56,142.49,23.776884]
[1728098390291,20.0,142.56,142.5,8.41453533]
[1728098390292,7.0155,142.55,142.5,8.41453533]
[1728098390499,20.0,142.56,142.5,8.41453533]
[1728098391209,7.0164,142.53,142.49,23.776884]
[1728098391521,7.0164,142.53,142.5,1.39754106]
[1728098392220,17.5343,142.58,142.51,25.17442525]
[1728098392221,7.0155,142.54,142.51,25.17442525]
[1728098392392,7.0155,142.54,142.51,23.776884]
[1728098393102,7.0161,142.53,142.51,23.776884]
[1728098393304,7.0161,142.53,142.5,23.902374]
[1728098393504,7.0167,142.52,142.5,23.776884]
[1728098393709,7.0174,142.51,142.46,7.0193]
[1728098393903,19.29179804,142.56,142.47,8.41664586]
[1728098393904,7.0166,142.52,142.47,8.41664586]
[1728098394519,7.0161,142.53,142.49,7.0179]
[1728098395095,7.0161,142.53,142.49,23.902374]
[1728098401521,27.0147,142.56,142.52,23.776884]
[1728098401717,7.0155,142.55,142.52,23.776884]
[1728098402023,1.75398141,142.55,142.5,23.776884]
[1728098402527,20.0,142.53,142.42,15.0444]
[1728098402833,20.0,142.53,142.44,9.28369411]
[1728098403021,7.0175,142.51,142.47,7.0189]
[1728098403200,7.0181,142.49,142.44,33.85429411]
[1728098403607,7.0175,142.5,142.45,7.0195]
[1728098403819,7.0171,142.51,142.46,8.41778606]
[1728098404421,7.0171,142.51,142.47,23.776884]
[1728098404739,7.0166,142.52,142.48,1.39832732]
[1728098406009,7.0161,142.53,142.49,23.776884]
[1728098406322,7.0166,142.52,142.49,23.776884]
[1728098406505,7.0166,142.52,142.49,25.17468654]
[1728098406825,7.0171,142.51,142.49,25.17468654]
[1728098407030,7.0165,142.52,142.49,23.776884]
[1728098407332,7.0165,142.52,142.49,1.39792088]
[1728098407627,7.0165,142.52,142.48,23.776884]
[1728098408126,7.0165,142.52,142.49,1.39792268]
[1728098408829,16.2858,142.54,142.5,23.776884]
[1728098409020,7.0151,142.55,142.52,23.776884]
[1728098409419,6.0467,142.57,142.53,1.39713718]
[1728098409420,13.0612,142.57,142.53,1.39713718]
[1728098409823,13.0612,142.57,142.52,25.17352851]
[1728098410012,7.0147,142.56,142.52,23.776884]
[1728098410214,7.0147,142.56,142.52,25.17371771]
[1728098410727,8.7685494,142.56,142.52,23.776884]
[1728098410934,7.0147,142.56,142.52,23.776884]
[1728098412015,7.0153,142.55,142.52,23.776884]
[1728098412337,7.0161,142.53,142.49,7.0179]
[1728098412843,6.0467,142.57,142.48,17.5458]
[1728098413007,7.0166,142.52,142.49,30.0]
[1728098413209,7.0171,142.51,142.49,30.0]
[1728098413735,17.5391,142.54,142.49,30.0]
[1728098413903,7.0171,142.51,142.49,30.0]
[1728098414238,7.0166,142.52,142.47,8.41694971]
[1728098414440,7.0166,142.52,142.47,7.0189]
[1728098414817,7.0171,142.51,142.47,23.776884]
[1728098415435,7.0171,142.51,142.47,25.17526337]
[1728098416238,7.0161,142.53,142.49,23.776884]
[1728098419230,7.017,142.51,142.48,23.776884]
[1728098421338,7.017,142.51,142.47,7.0189]
[1728098421537,7.017,142.51,142.47,8.41727044]
[1728098424731,7.017,142.51,142.46,26.95718411]
[1728098425034,7.017,142.51,142.47,23.776884]
[1728098426713,7.017,142.51,142.47,25.17531471]
[1728098427521,7.017,142.51,142.47,23.776884]
[1728098429038,7.0181,142.49,142.46,23.776884]
[1728098433037,8.77317259,142.48,142.43,17.5517]
[1728098433341,7.0185,142.48,142.44,23.776884]
[1728098436022,7.019,142.47,142.43,24.5725]
[1728098440446,7.019,142.47,142.43,25.97207258]
[1728098441723,7.0186,142.48,142.43,25.97207258]
[1728098441943,7.0186,142.48,142.44,23.776884]
[1728098442220,7.0186,142.48,142.44,30.797184]
[1728098446856,1.7548555,142.47,142.44,23.776884]
[1728098447741,8.7739555,142.47,142.44,23.776884]
[1728098448070,7.0191,142.47,142.43,24.5726]
[1728098448740,1.75499305,142.46,142.43,17.5517]
[1728098449063,1.75499305,142.46,142.4,17.5554]
[1728098449228,8.17059305,142.46,142.35,16.0429]
[1728098449427,7.0216,142.42,142.38,7.0233]
[1728098451732,7.0216,142.42,142.37,24.5831]
[1728098452888,7.0216,142.42,142.38,23.776884]
[1728098454136,6.4156,142.46,142.38,30.800284]
[1728098454137,7.0211,142.43,142.38,30.800284]
[1728098454445,6.4156,142.46,142.4,33.06057811]
[1728098454656,13.4352,142.46,142.41,7.0214]
[1728098454961,20.0,142.45,142.41,7.0214]
[1728098455638,27.0202,142.45,142.4,40.08287811]
[1728098456163,28.77552483,142.45,142.4,40.08287811]
[1728098456465,7.0205,142.44,142.4,40.08287811]
[1728098457544,7.0205,142.44,142.4,30.799184]
[1728098458440,7.0205,142.44,142.4,32.19978995]
[1728098459171,7.0205,142.44,142.4,30.799184]
[1728098459350,16.305,142.48,142.41,1.40058556]
[1728098459555,20.0,142.47,142.41,10.68427967]
[1728098459737,7.0197,142.46,142.41,17.70587967]
[1728098460053,23.3235,142.48,142.43,7.0209]
[1728098460246,16.305,142.48,142.44,8.41992513]
[1728098460459,13.5378,142.49,142.44,8.41992513]
[1728098460460,7.0184,142.49,142.44,8.41992513]
[1728098460640,7.0186,142.48,142.44,7.0204]
[1728098462562,7.0186,142.48,142.44,8.41961468]
[1728098465643,7.0186,142.48,142.44,7.0204]
[1728098466563,1.75484298,142.5,142.4,17.5555]
[1728098466564,7.0206,142.44,142.4,17.5555]
[1728098466873,7.0215,142.42,142.37,33.0366]
[1728098467038,15.0294,142.45,142.37,24.5831]
[1728098467039,8.77760809,142.41,142.37,24.5831]
[1728098467233,7.022,142.41,142.37,24.5831]
[1728098468268,7.022,142.41,142.38,23.776884]
[1728098468443,7.022,142.41,142.37,17.5592]
[1728098469361,15.0294,142.45,142.37,17.5592]
[1728098469560,7.0214,142.42,142.37,25.98457021]
[1728098469867,7.021,142.43,142.38,7.0233]
[1728098470085,7.021,142.43,142.39,25.17774151]
[1728098470360,7.021,142.43,142.39,23.776884]
[1728098477269,7.021,142.43,142.39,25.17779274]
[1728098477574,6.521,142.43,142.39,25.17779274]
[1728098478347,6.521,142.43,142.39,23.776884]
[1728098481871,8.7772146,142.42,142.38,7.0233]
[1728098482169,7.0217,142.42,142.38,7.0233]
[1728098482748,7.0217,142.42,142.38,8.42435927]
[1728098483470,7.0217,142.42,142.38,1.40105927]
[1728098483665,7.0217,142.42,142.38,23.776884]
[1728098483872,7.022,142.41,142.38,23.776884]
[1728098484058,7.022,142.41,142.37,23.902374]
[1728098484560,7.0234,142.38,142.34,17.5629]
[1728098485647,7.0234,142.38,142.35,23.776884]
[1728098487668,7.0239,142.37,142.35,23.776884]
[1728098487985,7.0239,142.37,142.34,20.0]
[1728098488157,7.0239,142.37,142.33,7.0259]
[1728098489172,7.0245,142.36,142.34,23.776884]
[1728098489374,20.0,142.38,142.3,7.027]
[1728098489585,7.0254,142.34,142.31,30.0]
[1728098489875,7.0254,142.34,142.29,22.8147]
[1728098490049,7.0254,142.34,142.29,32.09839411]
[1728098490251,1.75644091,142.37,142.29,16.31149411]
[1728098490571,7.0264,142.32,142.3,30.0]
[1728098490758,7.0264,142.32,142.28,17.5706]
[1728098491661,7.0264,142.32,142.27,7.0285]
[1728098492275,7.0264,142.32,142.28,1.40411043]
[1728098492575,7.026,142.33,142.29,1.40405102]
[1728098492982,7.026,142.33,142.28,16.31199411]
[1728098493283,7.026,142.33,142.29,23.776884]
[1728098495957,7.0245,142.36,142.31,16.31039411]
[1728098496170,7.0245,142.36,142.32,1.40305406]
[1728098498471,7.0245,142.36,142.32,17.71304817]
[1728098498671,7.024,142.37,142.33,1.40271285]
[1728098498873,7.024,142.37,142.34,23.776884]
[1728098499384,28.6012,142.42,142.37,7.0235]
[1728098499605,1.75576714,142.41,142.36,23.776884]
[1728098500078,1.75576714,142.41,142.35,23.776884]
[1728098500079,7.0235,142.38,142.35,23.776884]
[1728098500285,7.023,142.39,142.35,23.776884]
[1728098500893,7.023,142.39,142.35,25.17862207]
[1728098501384,7.023,142.39,142.35,32.20342207]
[1728098501689,21.5797,142.42,142.36,7.0242]
[1728098501690,7.022,142.41,142.36,7.0242]
[1728098502581,7.0225,142.4,142.36,7.0242]
[1728098502770,7.0225,142.4,142.35,49.76532207]
[1728098504390,7.0225,142.4,142.36,9.40918411]
[1728098504573,7.022,142.41,142.37,25.17824259]
[1728098504775,7.022,142.41,142.37,23.776884]
[1728098508697,21.5797,142.42,142.37,23.776884]
[1728098508891,7.0225,142.4,142.37,23.776884]
[1728098509698,7.0225,142.4,142.36,9.28369411]
[1728098510075,7.023,142.39,142.35,24.5867]
[1728098511296,7.023,142.39,142.35,17.5619]
[1728098511808,7.023,142.39,142.32,22.2979]
[1728098511809,7.0245,142.36,142.32,49.93869411]
[1728098511989,20.0,142.41,142.33,30.0]
[1728098511990,7.0243,142.37,142.33,30.0]
[1728098512177,20.0,142.41,142.33,30.0]
[1728098512999,20.0,142.41,142.32,40.655]
[1728098513177,7.0245,142.36,142.33,23.776884]
[1728098514179,7.0241,142.37,142.33,23.776884]
[1728098514380,7.0241,142.37,142.33,30.802784]
[1728098514588,7.0241,142.37,142.33,23.776884]
[1728098514790,20.0,142.39,142.33,23.776884]
[1728098515090,7.0244,142.36,142.33,23.776884]
[1728098515793,8.7813937,142.35,142.3,16.31089411]
[1728098515998,21.5797,142.42,142.29,23.624]
[1728098515999,1.75646221,142.34,142.29,17.569]
[1728098516203,1.75660841,142.36,142.3,30.0]
[1728098516399,7.026,142.33,142.3,30.0]
[1728098516580,1.75660841,142.36,142.3,30.0]
[1728098516780,1.75660841,142.36,142.29,17.569]
[1728098516977,21.75670428,142.35,142.27,7.0288]
[1728098517195,21.75670428,142.35,142.28,30.0]
[1728098517378,7.0279,142.29,142.28,30.0]
[1728098518204,7.0279,142.29,142.24,22.335]
[1728098518377,7.0279,142.29,142.24,24.58839411]
[1728098518578,7.0279,142.29,142.25,7.0298]
[1728098519498,20.0,142.33,142.24,15.3047]
[1728098519683,7.0285,142.28,142.24,15.3047]
[1728098520085,7.0279,142.29,142.24,22.3349]
[1728098520797,7.0274,142.3,142.25,7.0298]
[1728098520988,7.0275,142.3,142.26,23.776884]
[1728098522181,7.0269,142.31,142.26,8.43404794]
[1728098522391,7.0269,142.31,142.26,16.31299411]
[1728098523097,7.0269,142.31,142.26,7.0293]
[1728098525889,7.0265,142.32,142.27,30.931174]
[1728098526097,1.75689555,142.31,142.24,15.3047]
[1728098526402,7.0285,142.28,142.23,7.0303]
[1728098526609,7.0285,142.28,142.23,37.0303]
[1728098526807,7.0289,142.27,142.23,30.0]
[1728098527185,7.0289,142.27,142.22,30.6645]
[1728098527588,8.78700031,142.26,142.22,17.5782]
[1728098527799,1.7575394,142.25,142.22,17.5782]
[1728098527998,7.0295,142.26,142.22,17.5782]
[1728098528581,23.6082,142.31,142.22,17.5782]
[1728098528786,7.0287,142.28,142.23,7.0304]
[1728098529004,23.6082,142.31,142.23,7.0304]
[1728098529005,7.0289,142.27,142.23,7.0304]
[1728098529708,7.0289,142.27,142.22,17.5782]
[1728098529914,7.0289,142.27,142.23,23.776884]
[1728098530094,1.75750166,142.26,142.23,23.776884]
[1728098531416,7.0289,142.27,142.23,23.776884]
[1728098531716,1.75750279,142.26,142.22,17.5782]
[1728098531908,7.0295,142.26,142.22,17.5782]
[1728098533506,7.0295,142.26,142.22,24.6095]
[1728098533815,7.0295,142.26,142.22,17.5782]
[1728098535318,8.78744313,142.25,142.21,23.776884]
[1728098535915,8.7880641,142.24,142.21,23.776884]
[1728098536116,7.0299,142.25,142.21,23.776884]